Cogmind - Beta 12 @@@ ROGUE MODE // 2023.11.27 @ 20:28:03 Player: Tzetze Result: Destroyed by G-34 Mercenary with Small Laser Performance ------------- Evolutions (1) 500 Regions Visited (2) 400 Robots Destroyed (49) 245 Value Destroyed (1214) 1214 Prototype IDs (2) 40 Alien Tech Used (0) 0 Bonus (0) 0 TOTAL SCORE: 2399 Bonus ------- None Cogmind --------- Core Integrity 0/400 Matter 290/300 Energy 252/280 System Corruption 3% Temperature Cool (12) Movement Rolling (95) Ox1 Location -9/Materials Parts ------- > --- POWER (1) -------- Heavy Ion Engine > --- PROPULSION (2) --- Wheel Wheel > --- UTILITY (4) ------ Medium Storage Unit Visual Processing Unit Hacking Suite > --- WEAPON (2) ------- Spread Laser Light Assault Rifle > --- INVENTORY (10) --- Improved Treads Flight Unit Improved Targeting Computer Power Shielding Beam Rifle Particle Cannon Advanced Beam Cannon Light Assault Rifle Grenade Launcher Mace Peak State ------------ > --- POWER ------------ Light Nuclear Core > --- PROPULSION ------- Airjet Airjet > --- UTILITY ---------- Small Storage Unit Visual Processing Unit Hacking Suite Hacking Suite > --- WEAPON ----------- Beam Cannon High-powered Shotgun > --- INVENTORY -------- Light Ion Engine Core Shielding Light Assault Rifle Autogun Light Cannon Grenade Launcher [Rating: 22] Favorites ----------- Power Ion Engine Engine Ion Engine Power Core Light Nuclear Core Propulsion Aluminum Leg Leg Aluminum Leg Wheel Wheel Hover Unit Airjet Utility Visual Processing Unit Device ECM Suite Storage Small Storage Unit Processor Visual Processing Unit Hackware Hacking Suite Protection Core Shielding Weapon Medium Laser Energy Gun Medium Laser Energy Cannon Beam Cannon Ballistic Gun Autogun Ballistic Cannon Light Cannon Launcher Grenade Launcher Build | -11 -10 -9 ------- Run | Jun Mat Mat Slots Evolved 2 | . . 2 Power . | . . . Propulsion . | . . . Utility 2 | . . 2 Weapon . | . . . Parts Attached 61 | 5 19 37 Power 10 | 1 4 5 Engine 9 | 1 4 4 Core 1 | . . 1 Reactor . | . . . Propulsion 11 | 2 3 6 Treads . | . . . Leg 5 | . 3 2 Wheel 4 | 2 . 2 Hover 2 | . . 2 Flight . | . . . Utility 15 | . 4 11 Device 2 | . . 2 Storage 6 | . 3 3 Processor 2 | . 1 1 Hackware 3 | . . 3 Protection 2 | . . 2 Artifact . | . . . Weapon 25 | 2 8 15 Energy Gun 6 | 1 3 2 Energy Cannon 4 | . 1 3 Ballistic Gun 9 | 1 1 7 Ballistic Cannon 3 | . 2 1 Launcher 3 | . 1 2 Special Weapon . | . . . Impact Weapon . | . . . Slashing Weapon . | . . . Piercing Weapon . | . . . Special Melee Weapon . | . . . Unidentified Prototypes . | . . . Parts Lost 18 | . 4 14 Power 5 | . 1 4 Propulsion 5 | . 1 4 Utility 4 | . . 4 Weapon 4 | . 2 2 Highest Loss Streak 4 | . 2 4 To Critical Strikes . | . . . Average Slot Usage (%) 91 | . 93 90 Engine 8 | . 12 5 Core 1 | . . 1 Leg 18 | . 26 12 Wheel 2 | . . 3 Hover 1 | . . 3 Device 2 | . . 3 Storage 12 | . 12 11 Processor 11 | . 13 11 Hackware 7 | . . 11 Protection 2 | . . 4 Energy Gun 11 | . 19 6 Energy Cannon 2 | . . 3 Ballistic Gun 7 | . 2 11 Ballistic Cannon 1 | . 2 . Naked Turns . | . . . Heaviest Build 27 | 7 16 27 Greatest Support 20 | 20 20 20 Greatest Overweight (x) 5 | . 1 5 Average Overweight (x) . | . . . Largest Inventory Capacity 15 | 5 15 15 Average Capacity 7 | 5 7 8 Most Carried 10 | 5 8 10 Average Carried 6 | 2 6 6 Final Capacity 10 | 5 8 10 Final Carried 10 | 3 6 10 Class Distribution -------------------- 62% | Mutant 29% | Scavenger-Mutant 7% | Hacker-Mutant Dominant Class ---------------- Mutant | -10/Materials Scavenger-Mutant | -9/Materials Resources | -11 -10 -9 ----------- Run | Jun Mat Mat Matter Collected 1212 | 256 209 747 Remotely . | . . . Salvage Created 1247 | 33 407 807 Parts 82 | . 25 57 Haulers Intercepted . | . . . Recyclers Shooed 1 | . . 1 Parts Field Recycled . | . . . Retrieved Matter . | . . . Parts Self-Destructed . | . . . Prevented . | . . . Kills | -11 -10 -9 ------- Run | Jun Mat Mat Combat Hostiles Destroyed 39 | 1 10 28 Guns 27 | 1 9 17 Cannons 9 | . . 9 AOE 3 | . 1 2 Classes Destroyed 8 | 1 4 3 Worker 1 | . . 1 Tunneler 1 | . 1 . Operator 2 | . 1 1 Watcher 6 | . 3 3 Swarmer 15 | . 3 12 Grunt 20 | 1 7 12 Duelist 1 | . . 1 Sentry 3 | . . 3 Best Kill Streak 8 | 1 5 8 Combat Bots Only 3 | 1 3 3 Max Kills in Single Turn 2 | 1 2 2 Gunslinging 1 | . . 1 Exploded 1 | . 1 1 Melee . | . . . Uniques/NPCs Destroyed . | . . . Combat | -11 -10 -9 -------- Run | Jun Mat Mat Damage Taken 2388 | 33 544 1811 Core 506 | . 104 402 Absorbed by Shields . | . . . Redirected to Shielding 47 | . . 47 Core Remaining (%) 79 | 100 58 . Volleys Fired 148 | 2 41 105 Largest 2 | 2 2 2 Hottest 125 | 70 100 125 Shots Fired 262 | 4 78 180 Gun 221 | 4 76 141 Cannon 34 | . . 34 Launcher 7 | . 2 5 Special . | . . . Kinetic 123 | 2 18 103 Thermal 117 | 2 43 72 Explosive 7 | . 2 5 Electromagnetic 15 | . 15 . Robot Hit Streak 10 | 2 10 8 Robot Miss Streak 16 | 1 6 16 Penetration Max . | . . . Secondary Targets 5 | . 3 2 Max Gunslinging Chain 1 | . 1 1 Shots Hit Robots 163 | 2 46 115 Core Hits 96 | 2 26 68 Critical Kills 1 | . . 1 Critical Parts Destroyed . | . . . Critical Strikes 5 | 1 3 1 Burn 4 | 1 3 . Destroy 1 | . . 1 Melee Attacks . | . . . Impact . | . . . Slashing . | . . . Piercing . | . . . Sneak Attacks . | . . . Combat Hostiles . | . . . Follow-up Attacks . | . . . Damage Inflicted 2600 | 26 810 1764 Guns 1682 | 26 590 1066 Cannons 448 | . . 448 Explosions 470 | . 220 250 Melee . | . . . Ramming . | . . . Kinetic 939 | 13 131 795 Thermal 1222 | 13 490 719 Explosive 356 | . 106 250 Electromagnetic 83 | . 83 . Impact . | . . . Slashing . | . . . Piercing . | . . . Highest Corruption 3 | . 1 3 Average Corruption 1 | . 1 2 Corruption Purged . | . . . Corruption Blocked . | . . . Effects 16 | . 1 15 Message Errors 5 | . . 5 Matter Fused 2 | . . 2 Heat Flow Errors 2 | . . 2 Energy Discharges 5 | . 1 4 Data Loss (major) 1 | . . 1 Weapon Failures 1 | . . 1 Overload Shots . | . . . Overflow Damage 40 | . . 40 Projectiles 26 | . . 26 Explosions 14 | . . 14 Melee . | . . . Knockbacks 2 | . . 2 Impact . | . . . Kinetic 1 | . . 1 Secondary 1 | . . 1 Self-Inflicted Damage . | . . . Shots . | . . . Rammed . | . . . Targets Rammed . | . . . Kicked . | . . . Crushed . | . . . Highest Temperature 281 | 30 281 238 Average Temperature 72 | 18 93 61 Received Heat Transfer 654 | 18 255 381 Effects 1 | . 1 . Energy Bleed 1 | . 1 . Siege Activations . | . . . Robots Corrupted . | . . . Combat Hostiles . | . . . Parts Fried . | . . . Impact Corruptions . | . . . Robots Melted . | . . . Combat Hostiles . | . . . Parts Melted 12 | . 10 2 Heat Transferred 2760 | 111 1432 1217 Parts Sabotaged . | . . . Parts Stolen . | . . . Parts Stripped . | . . . Power Chain Reactions . | . . . Missiles Intercepted . | . . . Alert | -11 -10 -9 ------- Run | Jun Mat Mat Peak Influence 382 | 20 265 382 Initial 25 | . 13 25 Average 150 | 4 108 186 Maximum Alert Level 1 | . 1 1 Low Security (%) 68 | 100 80 59 Level 1 31 | . 19 40 Level 2 . | . . . Level 3 . | . . . Level 4 . | . . . Level 5 . | . . . High Security . | . . . Max Security . | . . . Squads Dispatched 8 | . 2 6 Investigation 6 | . . 6 Extermination . | . . . Reinforcement 2 | . 2 . Assault . | . . . Garrison . | . . . Intercept . | . . . Searches Triggered . | . . . Construction Impeded . | . . . Haulers Reinforced . | . . . Active Scanning Responses . | . . . Cargo Convoy Interrupts . | . . . Stealth | -11 -10 -9 --------- Run | Jun Mat Mat Distress Signals 5 | . 1 4 Communications Jammed . | . . . Distress Signals . | . . . Times Spotted 64 | 1 18 45 Peak Tracking Total 6 | 1 4 6 Tactical Retreats 2 | . . 2 Traps | -11 -10 -9 ------- Run | Jun Mat Mat Traps Triggered 7 | . 4 3 Indirectly . | . . . Trap Hack Attempts . | . . . Triggered . | . . . Disarmed . | . . . Reprogrammed . | . . . Reused . | . . . Traps Extracted . | . . . Installed . | . . . Triggered . | . . . Machines | -11 -10 -9 ---------- Run | Jun Mat Mat Machines Disabled 4 | . 2 2 Max in Single Turn 2 | . 2 1 Machines Repaired . | . . . Machines Sabotaged . | . . . Overloaded Fab Kills . | . . . Hacking | -11 -10 -9 --------- Run | Jun Mat Mat Machines Accessed 16 | . 6 10 Terminals 15 | . 5 10 Fabricators . | . . . Repair Stations . | . . . Recycling Units 1 | . 1 . Scanalyzers . | . . . Garrison Access . | . . . Total Hacks 52 | . 18 34 Successful 31 | . 9 22 Failed 21 | . 9 12 Catastrophic 2 | . 1 1 Database Lockouts . | . . . Manual 1 | . . 1 Terminals 48 | . 14 34 Fabricators . | . . . Repair Stations . | . . . Recycling Units 4 | . 4 . Scanalyzers . | . . . Garrison Access . | . . . Terminal Hacks 27 | . 5 22 Record 9 | . 2 7 Robot Analysis 1 | . . 1 Prototype ID Bank 1 | . . 1 Branch Access Points 1 | . . 1 Emergency Access Points 2 | . . 2 Terminal Index 2 | . 1 1 Alert Level 3 | . . 3 Unreport Threat 1 | . . 1 Surveillance Status 1 | . . 1 Investigation Status 1 | . . 1 Recall Investigation 1 | . . 1 Recall Reinforcements 1 | . 1 . Registered Components 1 | . . 1 Zone Layout 2 | . 1 1 Fabricator Hacks . | . . . Repair Station Hacks . | . . . Recycling Unit Hacks 4 | . 4 . Recycle Component 1 | . 1 . Process 1 | . 1 . Retrieve Matter 2 | . 2 . Scanalyzer . | . . . Garrison Access Hacks . | . . . Unauthorized Hacks . | . . . Terminals . | . . . Fabricators . | . . . Repair Stations . | . . . Recycling Units . | . . . Scanalyzers . | . . . Garrison Access . | . . . Data Cores Recovered 1 | . . 1 Used . | . . . Hacking Detections 13 | . 4 9 Full Trace Events 7 | . 2 5 Feedback Events 3 | . 1 2 Corruption 2 | . 1 1 Hackware Fried 1 | . . 1 Feedback Blocked . | . . . Robot Schematics Acquired . | . . . Robots Built . | . . . Authchips . | . . . Time . | . . . Total Robot Build Rating . | . . . Part Schematics Acquired . | . . . Parts Built . | . . . Authchips . | . . . Time . | . . . Total Part Build Rating . | . . . Parts Repaired . | . . . Time . | . . . Parts Recycled 1 | . 1 . Recycled Matter 12 | . 12 . Retrieved Matter 12 | . 12 . Retrieved Components . | . . . Parts Scanalyzed . | . . . Part Schematics Acquired . | . . . Parts Damaged . | . . . Bothacking | -11 -10 -9 ------------ Run | Jun Mat Mat Used RIF Installer . | . . . Robots Hacked . | . . . Non-combat . | . . . Combat . | . . . Robot Hacks Applied . | . . . Relay Couplers Released . | . . . Fabnet Peak Effective % . | . . . Robots Rewired . | . . . Allies Hacked . | . . . Hacks Repelled . | . . . Allies | -11 -10 -9 -------- Run | Jun Mat Mat Total Allies . | . . . Largest Group . | . . . Highest-Rated Group . | . . . Highest-Rated Ally . | . . . Total Orders . | . . . Ally Attacks . | . . . Total Damage . | . . . Kills . | . . . Allies Corrupted . | . . . Allies Melted . | . . . Intel | -11 -10 -9 ------- Run | Jun Mat Mat Robot Analysis Total 1 | . . 1 Derelict Logs Recovered . | . . . Drone Launches . | . . . Drone Recoveries . | . . . Exploration | -11 -10 -9 ------------- Run | Jun Mat Mat Turns Passed 2694 | 82 1046 1566 Spaces Moved 1903 | 86 738 1079 Core 35 | 20 . 15 Treads . | . . . Legs 1284 | . 727 557 Wheels 424 | 66 11 347 Hover 160 | . . 160 Flight . | . . . Fastest Speed 50 | 50 80 56 Average Speed 112 | 73 119 110 Slowest Speed 300 | 80 190 300 Overloaded Moves . | . . . Propulsion Burnouts . | . . . Robots Hopped . | . . . Cave-ins Triggered . | . . . Exploration Rate (%) 56 | 5 89 76 Regions Visited 2 Branch Regions . Pre-discovered Areas . | . . . Known Exits Taken . | . . . Unknown Exits Taken 2 | 1 1 . Scrap Searched . | . . . Spaces Dug . | . . . Terrain Destroyed 76 | . 46 30 Melee . | . . . Projectile . | . . . AOE 76 | . 46 30 Terrain Rammed . | . . . Walls Destroyed . | . . . Machines Disabled . | . . . Actions | -11 -10 -9 --------- Run | Jun Mat Mat Total 2215 | 100 821 1294 Wait 20 | . . 20 Move 1901 | 85 737 1079 Hop . | . . . Pick Up 64 | 8 19 37 Fast Attach . | . . . Attach 40 | 5 12 23 Detach 3 | . 1 2 Swap 21 | . 7 14 Drop 18 | . 4 14 Fire 148 | 2 41 105 Melee . | . . . Ram . | . . . Kick . | . . . Crush . | . . . Escape Stasis . | . . . Rewire . | . . . Trap . | . . . Miscellaneous . | . . . Route ------- -11/Junkyard -10/Materials (discovered 4 exits: *Mat x3 / [*Min]) -9/Materials (discovered 3 exits: [*Mat x2] / *Min) History --------- Turn | Location | Event 2 | -11/Junkyard | Met Revision 17 53 | -11/Junkyard | Discovered new exit (range 8) 83 | -11/Junkyard | Entered Materials 146 | -10/Materials | Discovered new exit (range 15) 309 | -10/Materials | Build established: Mutant 416 | -10/Materials | Discovered new exit (range 3) 660 | -10/Materials | Discovered new exit (range 18) 895 | -10/Materials | Discovered new exit (range 9) 1129 | -10/Materials | Entered another Materials area 1129 | -9/Materials | Evolved 2 slots: Utility x2 1602 | -9/Materials | Core integrity fell below 50% 1636 | -9/Materials | Lost 4 parts (1p2n1u) 1692 | -9/Materials | Discovered new exit (range 9) 1935 | -9/Materials | Hacking Suite fried by hacking feedback 2002 | -9/Materials | Discovered new exit (range 10) 2118 | -9/Materials | Core integrity fell below 20% 2401 | -9/Materials | Identified exit to Mines 2632 | -9/Materials | Build established: Scavenger-Mutant 2695 | -9/Materials | Destroyed by G-34 Mercenary with Small Laser Last Messages --------------- Downloading prototype IDs... Imp. Medium Laser Hvy. Ion Engine Feedback: System corruption (+1%). ALERT: Suspicious activity at Terminal M006. Dispatching Investigation squad. R-06 Scavenger inserts Lgt. Ion Engine into recycling unit. Triggered Alarm Trap. An alarm sounds. ALERT: Alarm triggered, dispatching investigation squad. [Achievement: Party Time] K-01 Serf collects debris. Connecting with Terminal... GVK=R>71:&:7D4W=XRF<4 QR47B K-01 Serf collects debris. Y-45 Defender destroyed. Dropped Sml. Matter Pod. Dropped Ion Engine. Acquired Imp. Targeting Computer. [Achievement: First Step to Greatness] Map ----- +----------------------------------------------------+ | | | | | | | | | | | | | | | | | | | | | | | | | | | | | | | | | | | | | | | ????????????????###????????????????????????????? | | ?????########??? #???????????????????????????? | | ?????# #??? #???????????????????????????? | | ?????# ! #??? #???????????????????????????? | | ?????# ""#??? ############????????????????? | | ?????# T"#### ## * #????????????????? | | ?????# ""# # ## @! #????????????????? | | ?????# # # ## #????????????????? | | ?????###+#+## ##+### #????????????????? | | ???????# #g #????????????????? | | ???????# + #????????????????? | | ???????##+### ! # #????????????????? | | ????????????#[%! # #????????????????? | | ?????????" + = ##g########????????????????? | | ???????""" # #?????????????????????? | | ???????""" # #?????????????????????? | | ?????? ?##### """g ########??????????????? | | ?????? % ???#### """ ?????????????? | | ????? / ???#""" """ ????????????? | | ???? ????#"Y """ ?????????????? | | ???# ?????#""" ########??????????????? | | ???#?############ #?????????????????????? | | ???????# """ # """ #?????????????########? | | ???????# "T" / """ #?????????????# #? | | ???????# # """ #?????????????# " #? | | ???????# # """ #?????????????# """#? | | ???????# # #?????????????# """#? | | ???????# """ # #???????#+#???# """#? | | ???????# """ # """ #???????# #???# "" #? | | ???????# """ # """ !#???????# #???# """#? | | ???????# # """ #???????# #???# ""#? | +----------------------------------------------------+ Best States ------------- Heat Dissipation 38 Energy Generation 14 Energy Capacity 250 Matter Stores 325 Matter Capacity 350 Sight Range 18 Terrain Scan Density 10 ECM Strength 1 Core Shielding 20 Evasion (%) 55 Offensive Hacking 20 Item Schematics ----------------- None Robot Schematics ------------------ None Fabricated ------------ Nothing Alien Tech Used ----------------- None Achievements -------------- Everything Is Under Control First Step to Greatness GoHome() Oops Party Time Storm Trooper Uninvited Guest Challenges ------------ None Game ------ Seed NuclearBurstAnalyzer Manual? 0 Play Time 00:55:20 Cumulative 3.0 hours Start 2023.11.27 @ 19:07:26 End 2023.11.27 @ 20:28:03 Sessions 1 Manual Loads 0 Difficulty Rogue Special Mode None Game No. 2 Rogue 1 Adventurer 1 Explorer 0 Win Type - Total 0 Types 0/0/0/0/0/0/0/0/0 Lore% 1 Gallery% 5 Achievement% 8 Wizard Run 0 Options --------- ASCII 0 Keyboard 0 Movement Mouse Keybinds 0 Fullscreen 1 Font 18/SmallcapsGlow Map View 76x50 Tactical HUD 0 Map Filters NONE Filters NONE Steam 1 RUN: 22b60584-7919-42db-a99e-732b923a1497